[Event "Late-Titled-Tuesday-Blitz-October-17-2023"]
[Site "Chess.com"]
[Date "2023.10.17"]
[Round "3"]
[White "gmcorrales"]
[Black "dadice10"]
[Result "1-0"]
[WhiteElo "2847"]
[BlackElo "2224"]
[TimeControl "180+1"]
[EndTime "14:28:51 PDT"]
[Termination "gmcorrales won by resignation"]

1. d4 {[%clk 0:03:00.9]} 1... d5 {[%clk 0:02:59.4]} 2. Nf3 {[%clk 0:03:00.9]}
2... Nf6 {[%clk 0:02:56.7]} 3. c4 {[%clk 0:03:00.7]} 3... dxc4 {[%clk
0:02:55.1]} 4. e3 {[%clk 0:03:00.5]} 4... Bg4 {[%clk 0:02:53.6]} 5. Bxc4 {[%clk
0:02:59.9]} 5... e6 {[%clk 0:02:53.7]} 6. h3 {[%clk 0:03:00.1]} 6... Bh5 {[%clk
0:02:52.4]} 7. O-O {[%clk 0:02:56.5]} 7... Bd6 {[%clk 0:02:50.5]} 8. Qb3 {[%clk
0:02:55.2]} 8... Bxf3 {[%clk 0:02:46.3]} 9. gxf3 {[%clk 0:02:55.3]} 9... Qc8
{[%clk 0:02:45.1]} 10. f4 {[%clk 0:02:51.4]} 10... O-O {[%clk 0:02:42.5]} 11.
Be2 {[%clk 0:02:46.6]} 11... c5 {[%clk 0:02:41.6]} 12. Bf3 {[%clk 0:02:44.1]}
12... Nc6 {[%clk 0:02:38.5]} 13. dxc5 {[%clk 0:02:43.7]} 13... Bxc5 {[%clk
0:02:38.5]} 14. Bd2 {[%clk 0:01:57.9]} 14... e5 {[%clk 0:02:37.9]} 15. Rc1
{[%clk 0:01:55.6]} 15... Bd6 {[%clk 0:02:27]} 16. fxe5 {[%clk 0:01:50.2]} 16...
Bxe5 {[%clk 0:02:24.4]} 17. Bg2 {[%clk 0:01:49.8]} 17... Qd7 {[%clk 0:02:18.3]}
18. Bc3 {[%clk 0:01:34.7]} 18... Rac8 {[%clk 0:02:11.4]} 19. Rd1 {[%clk
0:01:29.3]} 19... Qe7 {[%clk 0:02:07.7]} 20. Bxe5 {[%clk 0:01:22.7]} 20... Qxe5
{[%clk 0:02:02.6]} 21. Nc3 {[%clk 0:01:22.5]} 21... Na5 {[%clk 0:01:48]} 22. Qb5
{[%clk 0:01:04.7]} 22... Qxb5 {[%clk 0:01:37.2]} 23. Nxb5 {[%clk 0:01:05.6]}
23... a6 {[%clk 0:01:35.5]} 24. Nd6 {[%clk 0:01:05.4]} 24... Rc2 {[%clk
0:01:33.1]} 25. b4 {[%clk 0:00:51]} 25... Nc4 {[%clk 0:01:32.3]} 26. Nxc4 {[%clk
0:00:49.7]} 26... Rxc4 {[%clk 0:01:30.8]} 27. a3 {[%clk 0:00:49.6]} 27... b6
{[%clk 0:01:29.4]} 28. Rd6 {[%clk 0:00:48.9]} 28... Rb8 {[%clk 0:01:22.8]} 29.
Bf1 {[%clk 0:00:48.8]} 29... Rc3 {[%clk 0:01:15.9]} 30. Bxa6 {[%clk 0:00:46.6]}
30... Ne4 {[%clk 0:01:13.9]} 31. Rd4 {[%clk 0:00:46.6]} 31... Ng5 {[%clk
0:01:11]} 32. Kg2 {[%clk 0:00:46.4]} 32... Rc2 {[%clk 0:01:06.8]} 33. Bd3 {[%clk
0:00:45.3]} 33... Rb2 {[%clk 0:01:03]} 34. Bc4 {[%clk 0:00:41.7]} 34... g6
{[%clk 0:01:00.4]} 35. h4 {[%clk 0:00:33.1]} 35... Ne6 {[%clk 0:00:59.8]} 36.
Re4 {[%clk 0:00:32]} 36... Ng7 {[%clk 0:00:56.1]} 37. Rd1 {[%clk 0:00:23.9]}
37... Nf5 {[%clk 0:00:53]} 38. Rd7 {[%clk 0:00:21.3]} 38... Rf8 {[%clk
0:00:51.7]} 39. a4 {[%clk 0:00:19.9]} 39... Kg7 {[%clk 0:00:48.4]} 40. a5 {[%clk
0:00:18.4]} 40... Rxb4 {[%clk 0:00:46]} 41. a6 {[%clk 0:00:18.9]} 41... Ra4
{[%clk 0:00:45.7]} 42. a7 {[%clk 0:00:19.4]} 42... Ra8 {[%clk 0:00:38.5]} 43.
Rxf7+ {[%clk 0:00:19.2]} 43... Kh6 {[%clk 0:00:37.1]} 44. Bd5 {[%clk 0:00:13.1]}
44... R8xa7 {[%clk 0:00:36.7]} 45. Rxa7 {[%clk 0:00:11.5]} 45... Rxa7 {[%clk
0:00:35.8]} 46. Rf4 {[%clk 0:00:12.4]} 46... Ra5 {[%clk 0:00:31.4]} 47. Be4
{[%clk 0:00:12.6]} 47... Nd6 {[%clk 0:00:29.6]} 48. Bf3 {[%clk 0:00:12.9]} 48...
Nf5 {[%clk 0:00:28.1]} 49. Kh3 {[%clk 0:00:12.3]} 49... b5 {[%clk 0:00:25]} 50.
e4 {[%clk 0:00:11.5]} 50... Nd4 {[%clk 0:00:23.7]} 51. Bg4 {[%clk 0:00:12.1]}
51... Ra4 {[%clk 0:00:22.1]} 52. e5 {[%clk 0:00:11.8]} 52... Ne6 {[%clk
0:00:21.2]} 53. Rxa4 {[%clk 0:00:11.7]} 53... bxa4 {[%clk 0:00:19.7]} 54. Bxe6
{[%clk 0:00:11.9]} 1-0

[Event "Late-Titled-Tuesday-Blitz-October-17-2023"]
[Site "Chess.com"]
[Date "2023.10.17"]
[Round "3"]
[White "subham777"]
[Black "K_A_S_T_O_R"]
[Result "1-0"]
[WhiteElo "2568"]
[BlackElo "2862"]
[TimeControl "180+1"]
[EndTime "14:28:54 PDT"]
[Termination "subham777 won by resignation"]

1. e4 {[%clk 0:03:00.3]} 1... c5 {[%clk 0:02:59.7]} 2. Nf3 {[%clk 0:02:42]} 2...
d6 {[%clk 0:02:59.5]} 3. d4 {[%clk 0:02:41.9]} 3... cxd4 {[%clk 0:02:59.2]} 4.
Qxd4 {[%clk 0:02:42.8]} 4... Nc6 {[%clk 0:02:45.3]} 5. Bb5 {[%clk 0:02:35.4]}
5... Bd7 {[%clk 0:02:45.6]} 6. Bxc6 {[%clk 0:02:34.1]} 6... Bxc6 {[%clk
0:02:46]} 7. c4 {[%clk 0:02:34.3]} 7... Nf6 {[%clk 0:02:42.9]} 8. Nc3 {[%clk
0:02:34.1]} 8... g6 {[%clk 0:02:42.9]} 9. Bg5 {[%clk 0:02:33.3]} 9... Bg7 {[%clk
0:02:42.8]} 10. O-O {[%clk 0:02:33]} 10... O-O {[%clk 0:02:41.7]} 11. Qd3 {[%clk
0:02:33.3]} 11... Qb6 {[%clk 0:02:36.2]} 12. Rab1 {[%clk 0:02:26.1]} 12... a5
{[%clk 0:02:23.8]} 13. b3 {[%clk 0:02:14.8]} 13... Rfe8 {[%clk 0:02:22.2]} 14.
Rfe1 {[%clk 0:02:13.3]} 14... Nd7 {[%clk 0:02:21.6]} 15. Nd5 {[%clk 0:02:08.8]}
15... Qd8 {[%clk 0:02:10.2]} 16. Nd4 {[%clk 0:02:03.4]} 16... h6 {[%clk
0:02:04.3]} 17. Bh4 {[%clk 0:01:58.2]} 17... Ne5 {[%clk 0:01:47.1]} 18. Qe3
{[%clk 0:01:49.6]} 18... g5 {[%clk 0:01:42.7]} 19. Bg3 {[%clk 0:01:48.2]} 19...
e6 {[%clk 0:01:40.1]} 20. Nc3 {[%clk 0:01:44.9]} 20... Qb6 {[%clk 0:01:25.6]}
21. Nxc6 {[%clk 0:01:39.3]} 21... Qxe3 {[%clk 0:01:20.1]} 22. Ne7+ {[%clk
0:01:27]} 22... Rxe7 {[%clk 0:01:19.6]} 23. Rxe3 {[%clk 0:01:27.5]} 23... Rd7
{[%clk 0:01:15.8]} 24. Rd1 {[%clk 0:01:24]} 24... Rc8 {[%clk 0:01:06]} 25. Nb5
{[%clk 0:01:18.2]} 25... Rcd8 {[%clk 0:01:06]} 26. Re2 {[%clk 0:01:14.7]} 26...
Kf8 {[%clk 0:01:04.8]} 27. Red2 {[%clk 0:01:13.5]} 27... Ke7 {[%clk 0:01:04.8]}
28. f3 {[%clk 0:01:11.3]} 28... Bf8 {[%clk 0:00:43.5]} 29. Bf2 {[%clk
0:01:06.8]} 29... Kf6 {[%clk 0:00:38.7]} 30. Bb6 {[%clk 0:01:00.1]} 30... Ra8
{[%clk 0:00:37.5]} 31. Nxd6 {[%clk 0:00:55.2]} 31... Ra6 {[%clk 0:00:28.9]} 32.
c5 {[%clk 0:00:54.9]} 32... Bxd6 {[%clk 0:00:27.3]} 33. Rxd6 {[%clk 0:00:54.2]}
33... Rxd6 {[%clk 0:00:26.9]} 34. Rxd6 {[%clk 0:00:54.5]} 34... Ke7 {[%clk
0:00:23.9]} 35. Bd8+ {[%clk 0:00:51.8]} 35... Ke8 {[%clk 0:00:23.9]} 36. Rxa6
{[%clk 0:00:52.5]} 36... bxa6 {[%clk 0:00:24.8]} 37. Bxa5 {[%clk 0:00:53]} 37...
Nd3 {[%clk 0:00:22]} 38. c6 {[%clk 0:00:41.4]} 38... Ne5 {[%clk 0:00:21.7]} 39.
c7 {[%clk 0:00:39.3]} 39... Kd7 {[%clk 0:00:22.1]} 40. Kf2 {[%clk 0:00:33.1]}
40... Nd3+ {[%clk 0:00:17.4]} 41. Ke3 {[%clk 0:00:28.5]} 41... Ne5 {[%clk
0:00:14]} 42. b4 {[%clk 0:00:20.4]} 42... Nc4+ {[%clk 0:00:10.5]} 43. Kd4 {[%clk
0:00:20.3]} 43... Na3 {[%clk 0:00:07]} 44. Kc5 {[%clk 0:00:18.7]} 44... Nc2
{[%clk 0:00:05.6]} 45. Kb6 {[%clk 0:00:17]} 45... Nd4 {[%clk 0:00:04.1]} 46. Kb7
{[%clk 0:00:16.3]} 1-0

[Event "Late-Titled-Tuesday-Blitz-October-17-2023"]
[Site "Chess.com"]
[Date "2023.10.17"]
[Round "3"]
[White "TheKingDoctor"]
[Black "TanitoluwaAps116"]
[Result "1-0"]
[WhiteElo "2453"]
[BlackElo "2613"]
[TimeControl "180+1"]
[EndTime "14:28:55 PDT"]
[Termination "TheKingDoctor won by resignation"]

1. e4 {[%clk 0:02:58.7]} 1... c5 {[%clk 0:02:11.3]} 2. c3 {[%clk 0:02:39.1]}
2... Nf6 {[%clk 0:02:01.2]} 3. e5 {[%clk 0:02:38.9]} 3... Nd5 {[%clk 0:02:01]}
4. d4 {[%clk 0:02:39.8]} 4... cxd4 {[%clk 0:02:00.5]} 5. Nf3 {[%clk 0:02:39.8]}
5... d6 {[%clk 0:01:55.2]} 6. cxd4 {[%clk 0:02:40.7]} 6... Nc6 {[%clk
0:01:54.2]} 7. Bc4 {[%clk 0:02:40.7]} 7... e6 {[%clk 0:01:53.6]} 8. O-O {[%clk
0:02:40.4]} 8... Be7 {[%clk 0:01:52.8]} 9. Qe2 {[%clk 0:02:40.5]} 9... O-O
{[%clk 0:01:52]} 10. Bd2 {[%clk 0:02:40]} 10... dxe5 {[%clk 0:01:32.4]} 11. dxe5
{[%clk 0:02:40.9]} 11... Qb6 {[%clk 0:01:32.6]} 12. Nc3 {[%clk 0:02:38.7]} 12...
Qxb2 {[%clk 0:01:25.2]} 13. Bxd5 {[%clk 0:02:22.3]} 13... exd5 {[%clk 0:01:25]}
14. Nxd5 {[%clk 0:02:16.4]} 14... Be6 {[%clk 0:01:20.3]} 15. Rfb1 {[%clk
0:02:14.1]} 15... Qc2 {[%clk 0:01:09.1]} 16. Nxe7+ {[%clk 0:01:58.5]} 16... Nxe7
{[%clk 0:01:10]} 17. Nd4 {[%clk 0:01:55]} 17... Qg6 {[%clk 0:00:46.7]} 18. Nxe6
{[%clk 0:01:53]} 18... fxe6 {[%clk 0:00:44.1]} 19. Rxb7 {[%clk 0:01:53.9]} 19...
Nf5 {[%clk 0:00:24.8]} 20. Bb4 {[%clk 0:01:31.1]} 20... Nh4 {[%clk 0:00:09.3]}
21. f3 {[%clk 0:01:31.2]} 21... Rxf3 {[%clk 0:00:01.9]} 22. Be7 {[%clk
0:01:26.2]} 22... Re3 {[%clk 0:00:02]} 23. Qf2 {[%clk 0:01:23]} 23... Nf5 {[%clk
0:00:01.8]} 24. Bc5 {[%clk 0:01:20.3]} 24... Rxe5 {[%clk 0:00:01.7]} 25. Rd1
{[%clk 0:01:18.3]} 25... Re4 {[%clk 0:00:01.6]} 26. Rdd7 {[%clk 0:01:16.6]}
26... h5 {[%clk 0:00:02.2]} 27. Bd4 {[%clk 0:01:15.5]} 27... Nxd4 {[%clk
0:00:01.2]} 28. Rxd4 {[%clk 0:01:11.9]} 28... Rxd4 {[%clk 0:00:02.1]} 29. Qxd4
{[%clk 0:01:12.1]} 29... Rc8 {[%clk 0:00:03]} 30. h3 {[%clk 0:01:11.8]} 30...
Rc2 {[%clk 0:00:03.1]} 31. g4 {[%clk 0:00:57.9]} 31... hxg4 {[%clk 0:00:02.8]}
32. hxg4 {[%clk 0:00:57.4]} 32... Qh6 {[%clk 0:00:02.4]} 33. Qd8+ {[%clk
0:00:55.9]} 33... Kh7 {[%clk 0:00:02.8]} 34. Qd3+ {[%clk 0:00:56.2]} 34... Qg6
{[%clk 0:00:02.2]} 35. Qh3+ {[%clk 0:00:55]} 35... Qh6 {[%clk 0:00:02.3]} 36.
Qd3+ {[%clk 0:00:52.1]} 36... Qg6 {[%clk 0:00:02.7]} 37. Qxg6+ {[%clk
0:00:33.4]} 37... Kxg6 {[%clk 0:00:03]} 38. Rxa7 {[%clk 0:00:34.2]} 38... Kf6
{[%clk 0:00:03]} 39. g5+ {[%clk 0:00:32.9]} 39... Kg6 {[%clk 0:00:02.9]} 40. Kf1
{[%clk 0:00:33.1]} 40... Rc5 {[%clk 0:00:03.4]} 41. Ra6 {[%clk 0:00:32.1]} 41...
Rxg5 {[%clk 0:00:04.3]} 42. Rxe6+ {[%clk 0:00:32.1]} 42... Kf5 {[%clk
0:00:04.6]} 43. Ra6 {[%clk 0:00:32.6]} 43... Kf4 {[%clk 0:00:05.1]} 44. Kf2
{[%clk 0:00:32.7]} 44... Rb5 {[%clk 0:00:05.4]} 45. Ra4+ {[%clk 0:00:32.4]}
45... Kf5 {[%clk 0:00:06.1]} 46. Ra8 {[%clk 0:00:27.4]} 46... g5 {[%clk
0:00:06.4]} 47. a4 {[%clk 0:00:27.9]} 47... Rb3 {[%clk 0:00:05.8]} 48. a5 {[%clk
0:00:28.2]} 48... Ke4 {[%clk 0:00:05.5]} 49. a6 {[%clk 0:00:28.4]} 49... Kf4
{[%clk 0:00:06.2]} 50. a7 {[%clk 0:00:27.2]} 50... Rb2+ {[%clk 0:00:05.4]} 51.
Ke1 {[%clk 0:00:25.1]} 51... Ke3 {[%clk 0:00:02.7]} 52. Re8+ {[%clk 0:00:25]}
1-0

[Event "Late-Titled-Tuesday-Blitz-October-17-2023"]
[Site "Chess.com"]
[Date "2023.10.17"]
[Round "3"]
[White "Aariow"]
[Black "Willychess95"]
[Result "0-1"]
[WhiteElo "2473"]
[BlackElo "2661"]
[TimeControl "180+1"]
[EndTime "14:28:59 PDT"]
[Termination "Willychess95 won by resignation"]

1. d4 {[%clk 0:03:00.9]} 1... Nf6 {[%clk 0:02:58]} 2. c4 {[%clk 0:03:01]} 2...
e6 {[%clk 0:02:58.2]} 3. Nc3 {[%clk 0:03:01.7]} 3... Bb4 {[%clk 0:02:58]} 4. Qc2
{[%clk 0:03:02.4]} 4... d5 {[%clk 0:02:57.4]} 5. cxd5 {[%clk 0:03:00]} 5... exd5
{[%clk 0:02:57.1]} 6. Bg5 {[%clk 0:03:00.7]} 6... c6 {[%clk 0:02:53.9]} 7. e3
{[%clk 0:03:00.3]} 7... h6 {[%clk 0:02:48.7]} 8. Bh4 {[%clk 0:03:00.5]} 8... Bd6
{[%clk 0:02:41.9]} 9. Bd3 {[%clk 0:03:00.2]} 9... Be6 {[%clk 0:02:40.5]} 10.
Nge2 {[%clk 0:03:00.1]} 10... Nbd7 {[%clk 0:02:40.4]} 11. O-O {[%clk 0:02:59.5]}
11... Qe7 {[%clk 0:02:34.8]} 12. f4 {[%clk 0:02:53]} 12... Bg4 {[%clk 0:02:27]}
13. Ng3 {[%clk 0:02:45.2]} 13... Qxe3+ {[%clk 0:02:11.6]} 14. Kh1 {[%clk
0:02:44.3]} 14... O-O-O {[%clk 0:02:09.3]} 15. Nb5 {[%clk 0:01:41.8]} 15... Bxf4
{[%clk 0:01:55.7]} 16. Nf5 {[%clk 0:01:18.9]} 16... Bxf5 {[%clk 0:01:51]} 17.
Bxf5 {[%clk 0:01:19.8]} 17... g5 {[%clk 0:01:39.8]} 18. Rf3 {[%clk 0:01:04.1]}
18... Qd2 {[%clk 0:01:36.2]} 19. Qxd2 {[%clk 0:01:04]} 19... Bxd2 {[%clk
0:01:35.3]} 20. Bg3 {[%clk 0:01:04.9]} 20... Bf4 {[%clk 0:01:23.9]} 21. Bxf4
{[%clk 0:00:44.7]} 21... gxf4 {[%clk 0:01:22.3]} 22. Nd6+ {[%clk 0:00:43.7]}
22... Kc7 {[%clk 0:01:22.6]} 23. Nxf7 {[%clk 0:00:42.7]} 23... Rhe8 {[%clk
0:01:10.9]} 24. Nxd8 {[%clk 0:00:42.4]} 24... Kxd8 {[%clk 0:01:10.4]} 25. Bxd7
{[%clk 0:00:43]} 25... Nxd7 {[%clk 0:01:09.3]} 26. Rxf4 {[%clk 0:00:43.7]} 26...
Re2 {[%clk 0:01:09.9]} 27. b3 {[%clk 0:00:43.2]} 27... a5 {[%clk 0:01:02]} 28.
Kg1 {[%clk 0:00:43.6]} 28... Rd2 {[%clk 0:01:00.2]} 29. a3 {[%clk 0:00:42]}
29... Rd3 {[%clk 0:00:59.2]} 30. b4 {[%clk 0:00:42.6]} 30... a4 {[%clk
0:00:58.7]} 31. Rh4 {[%clk 0:00:36.8]} 31... Nf6 {[%clk 0:00:50.6]} 32. Rxh6
{[%clk 0:00:36.7]} 32... Ne4 {[%clk 0:00:51]} 33. h4 {[%clk 0:00:37]} 33... Rxd4
{[%clk 0:00:50.1]} 34. h5 {[%clk 0:00:36.6]} 34... Ng3 {[%clk 0:00:42.4]} 35.
Rh8+ {[%clk 0:00:36.4]} 35... Kc7 {[%clk 0:00:42.3]} 36. h6 {[%clk 0:00:37]}
36... Rh4 {[%clk 0:00:41.6]} 37. Kf2 {[%clk 0:00:28.7]} 37... Ne4+ {[%clk
0:00:40.4]} 38. Ke3 {[%clk 0:00:25.8]} 38... Kb6 {[%clk 0:00:37.2]} 39. Rf1
{[%clk 0:00:22.5]} 39... Nd6 {[%clk 0:00:26.6]} 40. h7 {[%clk 0:00:20.4]} 40...
Nc4+ {[%clk 0:00:26.1]} 41. Kd3 {[%clk 0:00:19.1]} 41... Nxa3 {[%clk 0:00:26.2]}
42. Rf7 {[%clk 0:00:17.5]} 42... Nc4 {[%clk 0:00:23.7]} 43. Rb8 {[%clk
0:00:17.4]} 43... Ne5+ {[%clk 0:00:23.8]} 44. Ke3 {[%clk 0:00:12.7]} 44... Nxf7
{[%clk 0:00:24.7]} 45. Ra8 {[%clk 0:00:11.6]} 45... Rxh7 {[%clk 0:00:22.6]} 46.
Rxa4 {[%clk 0:00:11.4]} 46... Rg7 {[%clk 0:00:22]} 47. Kf3 {[%clk 0:00:10.7]}
47... Ne5+ {[%clk 0:00:21.8]} 48. Kf4 {[%clk 0:00:10.9]} 48... Nd3+ {[%clk
0:00:21]} 49. Ke3 {[%clk 0:00:11.4]} 49... Nb2 {[%clk 0:00:20.1]} 50. Ra2 {[%clk
0:00:12.1]} 50... Rxg2 {[%clk 0:00:19]} 51. Kf3 {[%clk 0:00:11.4]} 51... Rc2
{[%clk 0:00:19]} 52. Ra8 {[%clk 0:00:08.1]} 52... Nc4 {[%clk 0:00:18.4]} 53. Kf4
{[%clk 0:00:07]} 53... Rb2 {[%clk 0:00:15.7]} 54. Ra3 {[%clk 0:00:07.3]} 54...
Nxa3 {[%clk 0:00:15.1]} 0-1

[Event "Late-Titled-Tuesday-Blitz-October-17-2023"]
[Site "Chess.com"]
[Date "2023.10.17"]
[Round "3"]
[White "Nick12772"]
[Black "expii"]
[Result "0-1"]
[WhiteElo "2390"]
[BlackElo "2248"]
[TimeControl "180+1"]
[EndTime "14:29:00 PDT"]
[Termination "expii won by resignation"]

1. Nf3 {[%clk 0:03:00.9]} 1... d5 {[%clk 0:02:58.7]} 2. g3 {[%clk 0:03:01.8]}
2... c5 {[%clk 0:02:56.6]} 3. Bg2 {[%clk 0:03:02.3]} 3... Nc6 {[%clk 0:02:56]}
4. d4 {[%clk 0:03:03]} 4... Nf6 {[%clk 0:02:51.8]} 5. O-O {[%clk 0:03:03.1]}
5... e6 {[%clk 0:02:51]} 6. c4 {[%clk 0:03:03.5]} 6... dxc4 {[%clk 0:02:49.6]}
7. Ne5 {[%clk 0:03:03.9]} 7... Nxe5 {[%clk 0:02:47.1]} 8. dxe5 {[%clk
0:03:04.8]} 8... Nd5 {[%clk 0:02:45.7]} 9. Na3 {[%clk 0:03:00.6]} 9... Be7
{[%clk 0:02:35]} 10. Nxc4 {[%clk 0:02:54.1]} 10... O-O {[%clk 0:02:28.5]} 11.
Ne3 {[%clk 0:02:49.8]} 11... Nxe3 {[%clk 0:02:20.5]} 12. Bxe3 {[%clk 0:02:50.7]}
12... Qc7 {[%clk 0:02:18.9]} 13. Qc2 {[%clk 0:02:48.3]} 13... Bd7 {[%clk
0:02:14.8]} 14. f4 {[%clk 0:02:38.1]} 14... Bc6 {[%clk 0:02:13.9]} 15. Bxc6
{[%clk 0:02:27.9]} 15... Qxc6 {[%clk 0:02:12.9]} 16. Rac1 {[%clk 0:02:28.3]}
16... b6 {[%clk 0:02:11.1]} 17. b4 {[%clk 0:02:26.4]} 17... Rac8 {[%clk
0:02:05.7]} 18. bxc5 {[%clk 0:02:25.7]} 18... bxc5 {[%clk 0:02:06.6]} 19. Qc4
{[%clk 0:02:23]} 19... Rfd8 {[%clk 0:02:05.5]} 20. Rfd1 {[%clk 0:02:21.5]} 20...
Rd5 {[%clk 0:01:56.2]} 21. Rd3 {[%clk 0:02:04.2]} 21... Rcd8 {[%clk 0:01:45.9]}
22. Rcd1 {[%clk 0:02:03.9]} 22... Rxd3 {[%clk 0:01:39.6]} 23. Rxd3 {[%clk
0:02:01.9]} 23... Rxd3 {[%clk 0:01:39.6]} 24. exd3 {[%clk 0:01:33.9]} 24... h6
{[%clk 0:01:37.3]} 25. Qe4 {[%clk 0:01:03.2]} 25... Qxe4 {[%clk 0:01:19.2]} 26.
dxe4 {[%clk 0:01:04.1]} 26... Kf8 {[%clk 0:01:18]} 27. Kf1 {[%clk 0:01:04.4]}
27... Ke8 {[%clk 0:01:17.3]} 28. Ke2 {[%clk 0:01:05.1]} 28... Kd7 {[%clk
0:01:09.5]} 29. Kd3 {[%clk 0:01:05.3]} 29... Kc6 {[%clk 0:01:09.1]} 30. Kc4
{[%clk 0:01:05.9]} 30... a6 {[%clk 0:01:09.2]} 31. f5 {[%clk 0:00:54.6]} 31...
h5 {[%clk 0:00:45.4]} 32. h3 {[%clk 0:00:50.7]} 32... g6 {[%clk 0:00:44.5]} 33.
g4 {[%clk 0:00:48.7]} 33... hxg4 {[%clk 0:00:44]} 34. hxg4 {[%clk 0:00:49.6]}
34... Bh4 {[%clk 0:00:26.7]} 35. Bxc5 {[%clk 0:00:45.4]} 35... Bg3 {[%clk
0:00:26.8]} 36. Bd4 {[%clk 0:00:31.1]} 36... Bf4 {[%clk 0:00:22.5]} 37. Bc3
{[%clk 0:00:29.2]} 37... Bg3 {[%clk 0:00:20.5]} 38. Bd4 {[%clk 0:00:29.5]} 38...
Bf4 {[%clk 0:00:20.3]} 39. a4 {[%clk 0:00:28.7]} 39... Bg3 {[%clk 0:00:20]} 40.
Kd3 {[%clk 0:00:25.4]} 40... Bf4 {[%clk 0:00:19.2]} 41. Ke2 {[%clk 0:00:12.1]}
41... g5 {[%clk 0:00:17]} 42. Be3 {[%clk 0:00:07.1]} 42... Bxe3 {[%clk
0:00:16.1]} 43. Kxe3 {[%clk 0:00:07.4]} 43... Kc5 {[%clk 0:00:16.2]} 44. Kd3
{[%clk 0:00:04.8]} 44... Kb4 {[%clk 0:00:11.7]} 45. Kd4 {[%clk 0:00:01.7]} 45...
a5 {[%clk 0:00:10.9]} 46. Kd3 {[%clk 0:00:01.8]} 46... Kxa4 {[%clk 0:00:11]} 47.
Kc4 {[%clk 0:00:02.7]} 47... Ka3 {[%clk 0:00:10.8]} 48. Kc3 {[%clk 0:00:03.4]}
48... a4 {[%clk 0:00:10.2]} 49. Kc2 {[%clk 0:00:03]} 49... Kb4 {[%clk
0:00:10.4]} 50. Kb2 {[%clk 0:00:03.4]} 50... Kc4 {[%clk 0:00:10.8]} 51. Ka2
{[%clk 0:00:04.3]} 51... Kd4 {[%clk 0:00:11.4]} 52. Ka3 {[%clk 0:00:05.2]} 52...
Kxe5 {[%clk 0:00:11.8]} 53. Kxa4 {[%clk 0:00:06.1]} 53... Kxe4 {[%clk
0:00:12.2]} 54. Kb4 {[%clk 0:00:07]} 54... exf5 {[%clk 0:00:12.4]} 55. Kc5
{[%clk 0:00:07.9]} 55... fxg4 {[%clk 0:00:12.5]} 0-1

[Event "Late-Titled-Tuesday-Blitz-October-17-2023"]
[Site "Chess.com"]
[Date "2023.10.17"]
[Round "3"]
[White "GiorgianBarbosa"]
[Black "dmarcolino"]
[Result "1-0"]
[WhiteElo "2371"]
[BlackElo "2085"]
[TimeControl "180+1"]
[EndTime "14:29:01 PDT"]
[Termination "GiorgianBarbosa won on time"]

1. e4 {[%clk 0:02:59.8]} 1... c6 {[%clk 0:02:59.3]} 2. c4 {[%clk 0:02:58.5]}
2... d5 {[%clk 0:03:00.2]} 3. cxd5 {[%clk 0:02:59.3]} 3... cxd5 {[%clk
0:03:00.8]} 4. exd5 {[%clk 0:03:00.2]} 4... Nf6 {[%clk 0:03:01.4]} 5. Nc3 {[%clk
0:03:01.1]} 5... Nxd5 {[%clk 0:03:01.8]} 6. d4 {[%clk 0:03:00.6]} 6... e6 {[%clk
0:02:58.5]} 7. Nf3 {[%clk 0:03:00.6]} 7... Be7 {[%clk 0:02:58.5]} 8. Bc4 {[%clk
0:02:57.7]} 8... Nxc3 {[%clk 0:02:57.5]} 9. bxc3 {[%clk 0:02:57.6]} 9... O-O
{[%clk 0:02:58]} 10. O-O {[%clk 0:02:57.6]} 10... Qc7 {[%clk 0:02:55.8]} 11. Qd3
{[%clk 0:02:48]} 11... Nd7 {[%clk 0:02:52.5]} 12. Bb3 {[%clk 0:02:47]} 12... b6
{[%clk 0:02:32.4]} 13. Bc2 {[%clk 0:02:42.4]} 13... g6 {[%clk 0:02:31.2]} 14.
Bh6 {[%clk 0:02:34.2]} 14... Rd8 {[%clk 0:02:28.8]} 15. Ng5 {[%clk 0:02:23]}
15... Bb7 {[%clk 0:02:15]} 16. Qh3 {[%clk 0:02:13.5]} 16... Nf6 {[%clk
0:01:39.6]} 17. Nxe6 {[%clk 0:00:56.3]} 17... fxe6 {[%clk 0:01:37.7]} 18. Qxe6+
{[%clk 0:00:57.1]} 18... Kh8 {[%clk 0:01:32.7]} 19. Qf7 {[%clk 0:00:52]} 19...
Rg8 {[%clk 0:01:01]} 20. Rfe1 {[%clk 0:00:42.2]} 20... Bd8 {[%clk 0:00:52.6]}
21. Qxc7 {[%clk 0:00:25.5]} 21... Bxc7 {[%clk 0:00:53.5]} 22. Re7 {[%clk
0:00:25.8]} 22... Rac8 {[%clk 0:00:50]} 23. Bb3 {[%clk 0:00:23]} 23... Bd5
{[%clk 0:00:36.6]} 24. c4 {[%clk 0:00:22.4]} 24... Bd6 {[%clk 0:00:25.9]} 25.
Rxa7 {[%clk 0:00:08.2]} 25... Bxc4 {[%clk 0:00:26.1]} 26. Bxc4 {[%clk
0:00:09.1]} 26... Rxc4 {[%clk 0:00:26.3]} 27. Rf7 {[%clk 0:00:10]} 27... Nd5
{[%clk 0:00:16.8]} 28. Rd7 {[%clk 0:00:06.4]} 28... Rc6 {[%clk 0:00:13.8]} 29.
g3 {[%clk 0:00:06.1]} 29... Rgc8 {[%clk 0:00:13]} 30. Kg2 {[%clk 0:00:04.8]}
30... Nf6 {[%clk 0:00:12]} 31. Rf7 {[%clk 0:00:02.7]} 31... Nh5 {[%clk
0:00:09.2]} 32. Re1 {[%clk 0:00:02.1]} 32... Kg8 {[%clk 0:00:09.3]} 33. Ra7
{[%clk 0:00:02.1]} 33... Bf8 {[%clk 0:00:08]} 34. Re4 {[%clk 0:00:01.2]} 34...
Bxh6 {[%clk 0:00:06.2]} 35. Ree7 {[%clk 0:00:01.8]} 35... Bf8 {[%clk 0:00:05.4]}
36. Rxh7 {[%clk 0:00:02.3]} 36... Nf6 {[%clk 0:00:05.4]} 37. Rhb7 {[%clk
0:00:02.7]} 37... Bd6 {[%clk 0:00:04.8]} 38. h4 {[%clk 0:00:02.5]} 38... R8c7
{[%clk 0:00:04.8]} 39. Ra8+ {[%clk 0:00:02.1]} 39... Kf7 {[%clk 0:00:03.9]} 40.
Rbb8 {[%clk 0:00:03]} 40... Nd7 {[%clk 0:00:01.5]} 41. Rh8 {[%clk 0:00:03.9]}
1-0